Cogmind - Beta 14 @@@ ROGUE MODE // 2024.12.26 @ 13:50:46 Player: x1b Result: Destroyed by D-53 Grenadier with Mini Grenade Launcher Performance ------------- Evolutions (1) 500 Regions Visited (3) 600 Robots Destroyed (18) 90 Value Destroyed (378) 378 Prototype IDs (0) 0 Alien Tech Used (0) 0 Bonus (0) 0 TOTAL SCORE: 1568 Bonus ------- None Cogmind --------- Core Integrity 0/400 Matter 205/300 Energy 100/100 System Corruption 0% Temperature Cool (0) Movement Core (100) Ox1 Location -9/Mines Parts ------- > --- POWER (1) -------- (None) > --- PROPULSION (3) --- (None) > --- UTILITY (3) ------ Small Storage Unit Visual Processing Unit > --- WEAPON (2) ------- (None) > --- INVENTORY (8) ---- Light Ion Engine Light Ion Engine Aluminum Leg Aluminum Leg Particle Gun Peak State ------------ > --- POWER ------------ Light Ion Engine > --- PROPULSION ------- Improved Aluminum Leg Improved Aluminum Leg Improved Aluminum Leg > --- UTILITY ---------- Small Storage Unit Visual Processing Unit > --- WEAPON ----------- Particle Gun Mini Grenade Launcher > --- INVENTORY -------- Light Ion Engine Light Ion Engine Aluminum Leg Aluminum Leg Improved Aluminum Leg Particle Gun Mini Grenade Launcher [Rating: 15] Favorites ----------- Power Light Ion Engine Engine Light Ion Engine Propulsion Improved Aluminum Leg Leg Improved Aluminum Leg Utility Small Storage Unit Storage Small Storage Unit Processor Visual Processing Unit Weapon Particle Gun Energy Gun Particle Gun Ballistic Gun Light Assault Rifle Launcher Mini Grenade Launcher Build | -11 -10 -9 -9 ------- Run | Yrd Mat Mat Min Slots Evolved 2 | . . 2 . Power . | . . . . Propulsion 1 | . . 1 . Utility 1 | . . 1 . Weapon . | . . . . Parts Attached 23 | 6 8 6 3 Power 3 | 1 1 1 . Engine 3 | 1 1 1 . Core . | . . . . Reactor . | . . . . Propulsion 7 | 2 3 1 1 Treads . | . . . . Leg 7 | 2 3 1 1 Wheel . | . . . . Hover . | . . . . Flight . | . . . . Utility 3 | 1 1 1 . Device . | . . . . Storage 2 | 1 . 1 . Processor 1 | . 1 . . Hackware . | . . . . Protection . | . . . . Artifact . | . . . . Weapon 10 | 2 3 3 2 Energy Gun 3 | 1 2 . . Energy Cannon . | . . . . Ballistic Gun 2 | 1 1 . . Ballistic Cannon . | . . . . Launcher 5 | . . 3 2 Special Weapon . | . . . . Impact Weapon . | . . . . Slashing Weapon . | . . . . Piercing Weapon . | . . . . Special Melee Weapon . | . . . . Unidentified Prototypes . | . . . . Parts Lost 10 | . . 1 9 Power 1 | . . . 1 Propulsion 4 | . . 1 3 Utility 1 | . . . 1 Weapon 4 | . . . 4 Highest Loss Streak 10 | . . 1 10 To Critical Strikes . | . . . . Average Slot Usage (%) 88 | . 85 90 77 Engine 12 | . 14 11 7 Leg 30 | . 28 33 14 Storage 14 | . 14 13 22 Processor 6 | . . 11 11 Energy Gun 10 | . 10 11 7 Ballistic Gun 7 | . 17 . . Launcher 5 | . . 10 14 Peak Build Rating 15 | 6 13 15 15 Average Rating 10 | 5 6 14 10 On Entrance 8 | . 6 13 13 Naked Turns . | . . . . Heaviest Build 21 | 11 14 21 21 Greatest Support 39 | 20 26 39 39 Greatest Overweight (x) 2 | 2 . . 1 Average Overweight (x) . | . . . . Largest Inventory Capacity 8 | 8 8 8 8 Average Capacity 7 | 7 8 8 8 Most Carried 8 | 2 8 8 7 Average Carried 6 | 1 4 7 6 Final Capacity 8 | 8 8 8 8 Final Carried 8 | 2 8 8 5 Class Distribution -------------------- 100% | Mutant Dominant Class ---------------- Mutant | -10/Materials Mutant | -9/Materials Mutant | -9/Mines Resources | -11 -10 -9 -9 ----------- Run | Yrd Mat Mat Min Matter Collected 560 | 183 168 209 . Remotely . | . . . . Salvage Created 402 | . 168 215 19 Parts 38 | . 17 20 1 Haulers Intercepted . | . . . . Recyclers Shooed . | . . . . Parts Field Recycled . | . . . . Retrieved Matter . | . . . . Parts Self-Destructed . | . . . . Prevented . | . . . . Kills | -11 -10 -9 -9 ------- Run | Yrd Mat Mat Min Combat Hostiles Destroyed 24 | . 6 7 11 Guns 7 | . 6 . 1 AOE 17 | . . 7 10 Classes Destroyed 8 | . 2 4 2 Worker 1 | . . 1 . Tunneler 1 | . . . 1 Watcher 3 | . . 3 . Swarmer 6 | . 3 3 . Grunt 5 | . 3 2 . Duelist 1 | . . 1 . Sentry 1 | . . 1 . Assembled 11 | . . . 11 Best Kill Streak 12 | . 3 7 12 Combat Bots Only 11 | . 3 5 11 Max Kills in Single Turn 5 | . 2 3 5 Gunslinging 1 | . 1 . . Exploded 5 | . . 3 5 Melee . | . . . . Uniques/NPCs Destroyed . | . . . . Combat | -11 -10 -9 -9 -------- Run | Yrd Mat Mat Min Hostile Shots Fired 129 | . 28 31 70 Missed 49 | . 9 14 26 Damage Taken 1656 | . 187 429 1040 Core 454 | . 53 65 336 Absorbed by Shields . | . . . . Core Remaining (%) 89 | 100 78 . . Volleys Fired 44 | . 27 12 5 Largest 2 | . 2 2 2 Hottest 95 | . 70 95 95 Shots Fired 88 | . 54 24 10 Gun 69 | . 54 12 3 Cannon . | . . . . Launcher 19 | . . 12 7 Special . | . . . . Kinetic 48 | . 48 . . Thermal 21 | . 6 12 3 Explosive 19 | . . 12 7 Electromagnetic . | . . . . Robot Hit Streak 6 | . 6 4 4 Robot Miss Streak 3 | . 3 2 2 Penetration Max . | . . . . Secondary Targets 3 | . 3 . . Max Gunslinging Chain 1 | . 1 . . Shots Hit Robots 48 | . 31 12 5 Core Hits 57 | . 11 16 30 Critical Kills . | . . . . Critical Parts Destroyed 1 | . 1 . . Critical Strikes 2 | . 1 1 . Burn 1 | . . 1 . Destroy 1 | . 1 . . Melee Attacks . | . . . . Impact . | . . . . Slashing . | . . . . Piercing . | . . . . Sneak Attacks . | . . . . Combat Hostiles . | . . . . Follow-up Attacks . | . . . . Damage Inflicted 2224 | . 324 710 1190 Guns 435 | . 324 78 33 Cannons . | . . . . Explosions 1781 | . . 624 1157 Melee . | . . . . Ramming 8 | . . 8 . Kinetic 286 | . 286 . . Thermal 149 | . 38 78 33 Explosive 1781 | . . 624 1157 Electromagnetic . | . . . . Impact . | . . . . Slashing . | . . . . Piercing . | . . . . Highest Corruption . | . . . . Average Corruption . | . . . . Corruption Purged . | . . . . Corruption Blocked . | . . . . Overload Shots . | . . . . Overflow Damage 59 | . . . 59 Projectiles . | . . . . Explosions 59 | . . . 59 Melee . | . . . . Knockbacks . | . . . . Impact . | . . . . Kinetic . | . . . . Secondary . | . . . . Self-Inflicted Damage 369 | . . 208 161 Shots 11 | . . 6 5 Rammed . | . . . . Targets Rammed 2 | . . 2 . Kicked 2 | . . 2 . Crushed . | . . . . Highest Temperature 92 | . 72 76 92 Average Temperature 33 | . 27 32 52 Received Heat Transfer 167 | . 78 69 20 Siege Activations . | . . . . Robots Corrupted . | . . . . Combat Hostiles . | . . . . Parts Fried . | . . . . Impact Corruptions . | . . . . Robots Melted . | . . . . Combat Hostiles . | . . . . Parts Melted 1 | . . 1 . Heat Transferred 444 | . 111 259 74 Parts Sabotaged . | . . . . Parts Stolen . | . . . . Parts Stripped . | . . . . Power Chain Reactions . | . . . . Alert | -11 -10 -9 -9 ------- Run | Yrd Mat Mat Min Peak Influence 302 | . 177 302 69 Initial 51 | . . 5 51 Average 83 | . 90 92 37 Maximum Alert Level 1 | . . 1 . Low Security (%) 91 | 100 100 81 100 Level 1 8 | . . 18 . Level 2 . | . . . . Level 3 . | . . . . Level 4 . | . . . . Level 5 . | . . . . High Security . | . . . . Max Security . | . . . . Squads Dispatched 2 | . 1 1 . Investigation 1 | . 1 . . Extermination . | . . . . Reinforcement 1 | . . 1 . Assault . | . . . . Garrison . | . . . . Intercept . | . . . . Searches Triggered . | . . . . Construction Impeded . | . . . . Haulers Reinforced . | . . . . Active Scanning Responses . | . . . . Cargo Convoy Interrupts . | . . . . Stealth | -11 -10 -9 -9 --------- Run | Yrd Mat Mat Min Distress Signals 3 | . . 3 . Communications Jammed . | . . . . Distress Signals . | . . . . Times Spotted 50 | . 8 20 22 Peak Tracking Total 20 | . 3 11 20 Tactical Retreats 3 | . 1 2 . Traps | -11 -10 -9 -9 ------- Run | Yrd Mat Mat Min Traps Triggered 1 | . 1 . . Indirectly . | . . . . Trap Hack Attempts . | . . . . Triggered . | . . . . Disarmed . | . . . . Reprogrammed . | . . . . Reused . | . . . . Traps Extracted . | . . . . Installed . | . . . . Triggered . | . . . . Machines | -11 -10 -9 -9 ---------- Run | Yrd Mat Mat Min Machines Disabled . | . . . . Max in Single Turn . | . . . . Machines Repaired . | . . . . Machines Dismantled . | . . . . Machines Sabotaged . | . . . . Overloaded Fab Kills . | . . . . Hacking | -11 -10 -9 -9 --------- Run | Yrd Mat Mat Min Machines Accessed 3 | . 1 2 . Terminals 3 | . 1 2 . Fabricators . | . . . . Repair Stations . | . . . . Recycling Units . | . . . . Scanalyzers . | . . . . Garrison Access . | . . . . Total Hacks 6 | . 1 5 . Successful 3 | . 1 2 . Failed 3 | . . 3 . Catastrophic . | . . . . Database Lockouts . | . . . . Manual . | . . . . Terminals 6 | . 1 5 . Fabricators . | . . . . Repair Stations . | . . . . Recycling Units . | . . . . Scanalyzers . | . . . . Garrison Access . | . . . . Terminal Hacks 3 | . 1 2 . Record 2 | . . 2 . Patrol Status 1 | . 1 . . Fabricator Hacks . | . . . . Repair Station Hacks . | . . . . Recycling Unit Hacks . | . . . . Scanalyzer . | . . . . Garrison Access Hacks . | . . . . Unauthorized Hacks . | . . . . Terminals . | . . . . Fabricators . | . . . . Repair Stations . | . . . . Recycling Units . | . . . . Scanalyzers . | . . . . Garrison Access . | . . . . Data Cores Recovered . | . . . . Used . | . . . . Hacking Detections 3 | . 1 2 . Full Trace Events . | . . . . Feedback Events . | . . . . Feedback Blocked . | . . . . Robot Schematics Acquired . | . . . . Robots Built . | . . . . Authchips . | . . . . Time . | . . . . Total Robot Build Rating . | . . . . Part Schematics Acquired . | . . . . Parts Built . | . . . . Authchips . | . . . . Time . | . . . . Total Part Build Rating . | . . . . Parts Repaired . | . . . . Time . | . . . . Parts Recycled . | . . . . Recycled Matter . | . . . . Retrieved Matter . | . . . . Retrieved Components . | . . . . Parts Scanalyzed . | . . . . Part Schematics Acquired . | . . . . Parts Damaged . | . . . . Bothacking | -11 -10 -9 -9 ------------ Run | Yrd Mat Mat Min Used RIF Installer . | . . . . Robots Hacked . | . . . . Non-combat . | . . . . Combat . | . . . . Robot Hacks Applied . | . . . . Relay Couplers Released . | . . . . Fabnet Peak Effective % . | . . . . Robots Rewired . | . . . . Allies Hacked . | . . . . Hacks Repelled . | . . . . Allies | -11 -10 -9 -9 -------- Run | Yrd Mat Mat Min Total Allies . | . . . . Largest Group . | . . . . Highest-Rated Group . | . . . . Highest-Rated Ally . | . . . . Total Orders . | . . . . Ally Attacks . | . . . . Total Damage . | . . . . Kills . | . . . . Allies Corrupted . | . . . . Allies Melted . | . . . . Intel | -11 -10 -9 -9 ------- Run | Yrd Mat Mat Min Robot Analysis Total . | . . . . Derelict Logs Recovered . | . . . . Drone Launches . | . . . . Drone Recoveries . | . . . . Exploration | -11 -10 -9 -9 ------------- Run | Yrd Mat Mat Min Turns Passed 1056 | 75 446 504 31 Spaces Moved 707 | 53 289 356 9 Core 9 | 6 . . 3 Treads . | . . . . Legs 698 | 47 289 356 6 Wheels . | . . . . Hover . | . . . . Flight . | . . . . Fastest Speed 50 | 50 120 120 100 Average Speed 120 | 122 120 120 136 Slowest Speed 190 | 190 120 120 190 Overloaded Moves . | . . . . Propulsion Burnouts . | . . . . Robots Hopped . | . . . . Cave-ins Triggered . | . . . . Exploration Rate (%) 21 | 3 35 33 13 Regions Visited 3 Branch Regions 1 Pre-discovered Areas . | . . . . Known Exits Taken . | . . . . Unknown Exits Taken 3 | 1 1 1 . Scrap Searched . | . . . . Spaces Dug . | . . . . Terrain Destroyed 107 | . . 76 31 Melee . | . . . . Projectile . | . . . . AOE 107 | . . 76 31 Terrain Rammed . | . . . . Walls Destroyed . | . . . . Machines Disabled . | . . . . Actions | -11 -10 -9 -9 --------- Run | Yrd Mat Mat Min Total 825 | 60 339 409 17 Wait 30 | . 4 26 . Move 704 | 52 288 355 9 Hop . | . . . . Pick Up 11 | 2 7 2 . Fast Attach 12 | 6 2 4 . Attach 4 | . . 1 3 Detach 1 | . . 1 . Swap 7 | . 6 1 . Drop 10 | . 5 5 . Fire 44 | . 27 12 5 Melee . | . . . . Ram . | . . . . Kick 2 | . . 2 . Crush . | . . . . Escape Stasis . | . . . . Rewire . | . . . . Trap . | . . . . Miscellaneous . | . . . . Route ------- -11/Scrapyard -10/Materials -9/Materials -9/Mines History --------- Turn | Location | Event 15 | -11/Scrapyard | Discovered new exit (range 16) 76 | -11/Scrapyard | Entered Materials 305 | -10/Materials | Build established: Mutant 422 | -10/Materials | Discovered new exit (range 13) 522 | -10/Materials | Entered another Materials area 522 | -9/Materials | Evolved 2 slots: Propulsion x1, Utility x1 997 | -9/Materials | Discovered new exit (range 14) 1026 | -9/Materials | Entered Mines 1027 | -9/Mines | Assembled infested the area 1045 | -9/Mines | Core integrity fell below 50% 1052 | -9/Mines | Core integrity fell below 20% 1057 | -9/Mines | Destroyed by D-53 Grenadier with Mini Grenade Launcher Last Messages --------------- as-11427 destroyed. as-69434 destroyed. as-88338 destroyed. Particle Gun destroyed. Destroyed Asb. Hover Unit. as-85241 destroyed. Destroyed Asb. Hover Unit. as-90847 destroyed. as-56628 destroyed. as-67395 destroyed. Destroyed Asb. Hover Unit. as-30793 destroyed. [Achievement: Quick And Dirty] The unstable cave ceiling collapses. Destroyed Asb. Hover Unit. as-25569 destroyed. The unstable cave ceiling collapses. Mni. Grenade Launcher destroyed. Sml. Storage Unit destroyed. The unstable cave ceiling collapses. Map ----- +----------------------------------------------------+ | ??????????????????????????????????? | | ??????????????????????????????????? | | ??????????????????????????????????? | | ??????????????????????????????????? | | ??????????????????????????????????? | | ??????????????????????????????????? | | ??????????????????????????????????? | | ???????????????????#??????????????? | | ?????????????????? #??????????????? | | ?????????????????? #??????????????? | | ????????????????? #??????????????? | | ???????????????## #??????????????? | | ??????????????# ####???????????? | | ?????????????# ##??????????? | | ????????????? ##?????????? | | ????????????? < ## ??????? | | ???????###### ?????? | | ??????## d d #????? | | ??????# ????????? | | ?????## #?????????????? | | ?????# #?????????????? | | ??????# ##?????????????? | | ?????## #?????????????? | | ?????# # #### #?????????? | | ?????## #?????????? | | ??????# @ a #?????????? | | ?????# # #######?????????? | | ???# ## #???????????????? | | ??# ?? # #???????????????? | | ??# ??### #???????????????? | | ??# ?????# #??????????????? | | ??# ??????# #?????????????? | | ??# ????????# #?????????????? | | ??## ????????? #?????????????? | | ???# ?????????? #?????????????? | | ???# # ?????????? ##?????????????? | | ???# #???????????????????????????? | | ???# ????????????????????????????? | | ???# ?????????????????????????????? | | ??????????????????????????????????? | | ??????????????????????????????????? | | ??????????????????????????????????? | | ??????????????????????????????????? | | ??????????????????????????????????? | | ??????????????????????????????????? | | ??????????????????????????????????? | | ??????????????????????????????????? | | ??????????????????????????????????? | | ??????????????????????????????????? | | ??????????????????????????????????? | +----------------------------------------------------+ Best States ------------- Heat Dissipation 28 Energy Generation 10 Energy Capacity 250 Matter Stores 281 Matter Capacity 300 Sight Range 18 Terrain Scan Density 10 Evasion (%) 55 Item Schematics ----------------- None Robot Schematics ------------------ None Fabricated ------------ Nothing Alien Tech Used ----------------- None Achievements -------------- Hunted Quick And Dirty Challenges ------------ None Game ------ Seed CentriumExperimentalBeam Manual? 0 Play Time 00:13:23 Cumulative 3.1 hours Start 2024.12.26 @ 13:25:50 End 2024.12.26 @ 13:50:46 Sessions 1 Manual Loads 0 Difficulty Rogue Special Mode None Game No. 11 Rogue 5 Adventurer 6 Explorer 0 Win Type - Total 0 Types 0/0/0/0/0/0/0/0/0 Lore% 2 Gallery% 8 Achievement% 8 Wizard Run 0 Options --------- Layout 1 ASCII 0 Keyboard 0 Movement Arrows Keybinds 0 Fullscreen 1 Font 24/Smallcaps Map View 50x35 Zoom Use 0% Tactical HUD 0 Map Filters NONE Filters NONE Steam 1 RUN: baa00b93-dcf3-479f-950c-8f27f1f7387a